[Event "2019 National Open"]
[Site "Las Vegas"]
[Date "2019.06.14"]
[Round "4"]
[White "Belous, Vladimir"]
[Black "Polavaram, Rithik"]
[Result "1-0"]
[ECO "A18"]
[WhiteElo "2514"]
[BlackElo "2058"]
[PlyCount "115"]
[EventDate "2019.??.??"]
[TimeControl "5400+30"]
[WhiteClock "0:02:25"]
[BlackClock "1:11:08"]

1. c4 {[%emt 0:00:00]} Nf6 {[%emt 0:00:01]} 2. Nc3 {[%emt 0:00:04]} e6 {[%emt 0:00:04]} 3. e4 {[%emt 0:00:36]} d5 {[%emt 0:00:14]} 4. e5 {[%emt 0:00:38]} d4 {[%emt 0:00:19]} 5. exf6 {[%emt 0:00:08]} dxc3 {[%emt 0:00:16]} 6. bxc3 {[%emt 0:00:01]} Qxf6 {[%emt 0:00:06]} 7. Nf3 {[%emt 0:00:04]} c5 {[%emt 0:10:01]} 8. Bd3 {[%emt 0:00:21]} Bd7 {[%emt 0:17:48]} 9. Rb1 {[%emt 0:07:46]} Bc6 {[%emt 0:01:41]} 10. Qe2 {[%emt 0:00:06]} Qf4 {[%emt 0:10:37]} 11. Bc2 {[%emt 0:04:00]} Qg4 {[%emt 0:13:13]} 12. O-O {[%emt 0:02:49]} Nd7 {[%emt 0:11:19]} 13. d4 {[%emt 0:01:14]} O-O-O {[%emt 0:14:06]} 14. Be3 {[%emt 0:00:43]} Bxf3 {[%emt 0:16:20]} 15. Qxf3 {[%emt 0:00:06]} Qxf3 {[%emt 0:00:01]} 16. gxf3 {[%emt 0:00:00]} e5 {[%emt 0:00:49]} 17. Be4 {[%emt 0:05:47]} b6 {[%emt 0:00:10]} 18. dxe5 {[%emt 0:00:10]} Nxe5 {[%emt 0:00:58]} 19. Bd5 {[%emt 0:00:00]} Bd6 {[%emt 0:00:00]} 20. a4 {[%emt 0:00:10]} f6 {[%emt 0:00:00]} 21. f4 {[%emt 0:00:38]} Ng6 {[%emt 0:00:42]} 22. a5 {[%emt 0:00:55]} Ne7 {[%emt 0:00:00]} 23. axb6 {[%emt 0:01:30]} Nxd5 {[%emt 0:00:00]} 24. b7+ {[%emt 0:03:08]} Kc7 {[%emt 0:00:00]} 25. cxd5 {[%emt 0:00:01]} Rb8 {[%emt 0:00:00]} 26. Ra1 {[%emt 0:00:20]} Kxb7 {[%emt 0:02:18]} 27. Ra5 {[%emt 0:00:07]} Rhc8 {[%emt 0:01:53]} 28. Rfa1 {[%emt 0:05:00]} a6 {[%emt 0:00:00]} 29. c4 {[%emt 0:00:53]} Ra8 {[%emt 0:00:00]} 30. Rb1+ {[%emt 0:00:10]} Kc7 {[%emt 0:00:40]} 31. f5 {[%emt 0:00:49]} Rab8 {[%emt 0:00:42]} 32. Rxb8 {[%emt 0:00:46]} Rxb8 {[%emt 0:00:02]} 33. Rxa6 {[%emt 0:01:44]} Rb6 {[%emt 0:00:01]} 34. Rxb6 {[%emt 0:02:36]} Kxb6 {[%emt 0:00:01]} 35. Bd2 {[%emt 0:00:04]} Be5 {[%emt 0:00:54]} 36. h3 {[%emt 0:00:08]} Bd6 {[%emt 0:00:00]} 37. Kg2 {[%emt 0:00:43]} Be5 {[%emt 0:00:05]} 38. Kf3 {[%emt 0:00:04]} Bd6 {[%emt 0:01:18]} 39. Kg4 {[%emt 0:00:05]} Be7 {[%emt 0:00:24]} 40. Bf4 {[%emt 0:00:42]} Bf8 {[%emt 0:01:32]} 41. Bd2 {[%emt 0:00:42]} Bd6 {[%emt 0:00:08]} 42. h4 {[%emt 0:00:04]} Be7 {[%emt 0:00:09]} 43. h5 {[%emt 0:00:06]} h6 {[%emt 0:00:39]} 44. Bf4 {[%emt 0:00:11]} Bf8 {[%emt 0:00:14]} 45. Kf3 {[%emt 0:00:04]} Be7 {[%emt 0:02:07]} 46. Ke4 {[%emt 0:00:05]} Bf8 {[%emt 0:00:20]} 47. Kd3 {[%emt 0:00:05]} Be7 {[%emt 0:00:00]} 48. Kc3 {[%emt 0:00:03]} Ka6 {[%emt 0:00:00]} 49. Kb3 {[%emt 0:00:01]} Kb7 {[%emt 0:00:00]} 50. Ka4 {[%emt 0:00:03]} Kb6 {[%emt 0:00:00]} 51. Bg3 {[%emt 0:00:09]} Bf8 {[%emt 0:01:03]} 52. d6 {[%emt 0:00:17]} Kc6 {[%emt 0:00:04]} 53. Ka5 {[%emt 0:00:04]} g5 {[%emt 0:02:11]} 54. fxg6 {[%emt 0:00:12]} Bg7 {[%emt 0:00:04]} 55. Ka6 {[%emt 0:00:21]} f5 {[%emt 0:00:16]} 56. Bf4 {[%emt 0:00:06]} Bf8 {[%emt 0:00:03]} 57. Be5 {[%emt 0:00:04]} Bxd6 {[%emt 0:00:12]} 58. Bxd6 {[%emt 0:00:09]} 1-0

[Event "2019 National Open"]
[Site "Las Vegas"]
[Date "2019.06.14"]
[Round "4"]
[White "Shetty, Atulya"]
[Black "Costello, Alexander"]
[Result "1/2-1/2"]
[ECO "A20"]
[WhiteElo "2431"]
[BlackElo "2297"]
[PlyCount "72"]
[EventDate "2019.??.??"]
[TimeControl "5400+30"]
[WhiteClock "0:04:42"]
[BlackClock "0:13:43"]

1. c4 {[%emt 0:00:00]} e5 {[%emt 0:01:34]} 2. g3 {[%emt 0:00:15]} Nf6 {[%emt 0:00:02]} 3. Bg2 {[%emt 0:00:07]} c6 {[%emt 0:00:03]} 4. d4 {[%emt 0:00:33]} exd4 {[%emt 0:00:03]} 5. Qxd4 {[%emt 0:00:09]} Na6 {[%emt 0:00:02]} 6. Nf3 {[%emt 0:01:40]} Bc5 {[%emt 0:00:03]} 7. Qd1 {[%emt 0:01:10]} O-O {[%emt 0:01:15]} 8. O-O {[%emt 0:00:07]} d5 {[%emt 0:01:25]} 9. cxd5 {[%emt 0:03:17]} Qxd5 {[%emt 0:01:07]} 10. Qa4 {[%emt 0:02:53]} Qh5 {[%emt 0:03:00]} 11. Bg5 {[%emt 0:06:31]} Be7 {[%emt 0:02:25]} 12. Nc3 {[%emt 0:04:35]} Nc5 {[%emt 0:13:20]} 13. Qc2 {[%emt 0:04:40]} h6 {[%emt 0:02:59]} 14. Be3 {[%emt 0:03:00]} Bf5 {[%emt 0:03:04]} 15. Qc1 {[%emt 0:00:38]} Nce4 {[%emt 0:09:08]} 16. Nxe4 {[%emt 0:07:29]} Bxe4 {[%emt 0:00:08]} 17. Bd4 {[%emt 0:02:31]} c5 {[%emt 0:06:09]} 18. Bc3 {[%emt 0:03:31]} Nd5 {[%emt 0:04:55]} 19. Bd2 {[%emt 0:00:29]} b5 {[%emt 0:05:06]} 20. Rd1 {[%emt 0:05:14]} a6 {[%emt 0:09:12]} 21. a4 {[%emt 0:08:15]} Rfc8 {[%emt 0:04:51]} 22. h3 {[%emt 0:08:59]} Qf5 {[%emt 0:01:37]} 23. Ne1 {[%emt 0:01:34]} Bxg2 {[%emt 0:00:51]} 24. Kxg2 {[%emt 0:00:05]} Qe4+ {[%emt 0:01:46]} 25. Nf3 {[%emt 0:00:14]} c4 {[%emt 0:02:34]} 26. Qb1 {[%emt 0:09:54]} Qxb1 {[%emt 0:01:04]} 27. Raxb1 {[%emt 0:01:58]} c3 {[%emt 0:04:32]} 28. bxc3 {[%emt 0:02:08]} bxa4 {[%emt 0:00:06]} 29. Ra1 {[%emt 0:01:46]} a3 {[%emt 0:04:49]} 30. Rdc1 {[%emt 0:04:04]} Nb6 {[%emt 0:01:26]} 31. Rc2 {[%emt 0:00:37]} Nc4 {[%emt 0:00:42]} 32. Bf4 {[%emt 0:01:15]} g5 {[%emt 0:01:55]} 33. Bc1 {[%emt 0:00:04]} Rab8 {[%emt 0:03:14]} 34. Nd4 {[%emt 0:01:00]} Bc5 {[%emt 0:07:51]} 35. Rca2 {[%emt 0:01:09]} Nb2 {[%emt 0:00:37]} 36. Nc2 {[%emt 0:02:26]} Na4 {[%emt 0:00:23]} 1/2-1/2

[Event "2019 National Open"]
[Site "Las Vegas"]
[Date "2019.06.14"]
[Round "4"]
[White "Asaria, Danial"]
[Black "Katz, Alexander"]
[Result "0-1"]
[ECO "A42"]
[WhiteElo "2304"]
[BlackElo "2427"]
[PlyCount "48"]
[EventDate "2019.??.??"]
[TimeControl "5400+30"]
[WhiteClock "0:32:06"]
[BlackClock "0:09:36"]

1. d4 {[%emt 0:00:00]} d6 {[%emt 0:00:16]} 2. c4 {[%emt 0:01:55]} e5 {[%emt 0:00:05]} 3. d5 {[%emt 0:02:57]} f5 {[%emt 0:02:18]} 4. Nc3 {[%emt 0:02:54]} Nf6 {[%emt 0:00:18]} 5. Qc2 {[%emt 0:04:19]} c6 {[%emt 0:02:34]} 6. Bg5 {[%emt 0:06:48]} h6 {[%emt 0:03:33]} 7. Bd2 {[%emt 0:00:54]} Be7 {[%emt 0:11:33]} 8. e4 {[%emt 0:04:15]} cxd5 {[%emt 0:00:07]} 9. cxd5 {[%emt 0:00:00]} fxe4 {[%emt 0:00:38]} 10. Nxe4 {[%emt 0:09:19]} Nxd5 {[%emt 0:03:49]} 11. Bb5+ {[%emt 0:18:02]} Kf8 {[%emt 0:00:33]} 12. Rd1 {[%emt 0:04:58]} Nc7 {[%emt 0:04:49]} 13. Ba4 {[%emt 0:02:23]} Bf5 {[%emt 0:06:46]} 14. Ne2 {[%emt 0:07:54]} Nba6 {[%emt 0:07:59]} 15. N2g3 {[%emt 0:02:37]} Bxe4 {[%emt 0:00:21]} 16. Nxe4 {[%emt 0:02:47]} d5 {[%emt 0:00:29]} 17. f4 {[%emt 0:04:36]} dxe4 {[%emt 0:01:56]} 18. fxe5 {[%emt 0:00:21]} Qd3 {[%emt 0:04:30]} 19. Qc1 {[%emt 0:04:31]} Kg8 {[%emt 0:06:42]} 20. Be3 {[%emt 0:03:17]} Nb4 {[%emt 0:02:34]} 21. Rf1 {[%emt 0:05:36]} Kh7 {[%emt 0:01:44]} 22. Bxh6 {[%emt 0:01:13]} Rhf8 {[%emt 0:03:12]} 23. Bf4 {[%emt 0:00:07]} Ncd5 {[%emt 0:00:46]} 24. Bb3 {[%emt 0:00:41]} Rac8 {[%emt 0:02:22]} 0-1

[Event "2019 National Open"]
[Site "Las Vegas"]
[Date "2019.06.14"]
[Round "4"]
[White "Della Morte, Pablo"]
[Black "Nestorovic, Nikola"]
[Result "0-1"]
[ECO "C50"]
[WhiteElo "2270"]
[BlackElo "2481"]
[PlyCount "86"]
[EventDate "2019.??.??"]
[TimeControl "5400+30"]
[WhiteClock "0:00:37"]
[BlackClock "0:02:11"]

1. e4 {[%emt 0:00:00]} e5 {[%emt 0:00:04]} 2. Nf3 {[%emt 0:00:32]} Nc6 {[%emt 0:00:05]} 3. Bc4 {[%emt 0:00:37]} Bc5 {[%emt 0:00:05]} 4. d3 {[%emt 0:02:38]} Nf6 {[%emt 0:00:10]} 5. O-O {[%emt 0:00:41]} O-O {[%emt 0:00:27]} 6. c3 {[%emt 0:02:56]} d6 {[%emt 0:00:43]} 7. Bb3 {[%emt 0:00:56]} h6 {[%emt 0:02:22]} 8. Nbd2 {[%emt 0:05:02]} a5 {[%emt 0:01:06]} 9. a4 {[%emt 0:03:30]} Ba7 {[%emt 0:00:44]} 10. Re1 {[%emt 0:00:42]} Ne7 {[%emt 0:00:56]} 11. Nf1 {[%emt 0:07:37]} Ng6 {[%emt 0:00:09]} 12. Ng3 {[%emt 0:03:35]} c6 {[%emt 0:00:42]} 13. h3 {[%emt 0:00:55]} d5 {[%emt 0:00:38]} 14. exd5 {[%emt 0:16:38]} Nxd5 {[%emt 0:00:07]} 15. d4 {[%emt 0:00:28]} exd4 {[%emt 0:07:46]} 16. Nxd4 {[%emt 0:01:03]} Ndf4 {[%emt 0:10:54]} 17. Qf3 {[%emt 0:05:09]} Qf6 {[%emt 0:18:32]} 18. Ne4 {[%emt 0:10:01]} Qh4 {[%emt 0:00:55]} 19. Nd6 {[%emt 0:08:30]} Bxd4 {[%emt 0:00:39]} 20. cxd4 {[%emt 0:01:18]} Be6 {[%emt 0:05:02]} 21. Bxf4 {[%emt 0:07:54]} Nxf4 {[%emt 0:09:19]} 22. Bxe6 {[%emt 0:01:10]} fxe6 {[%emt 0:13:07]} 23. Qg4 {[%emt 0:07:46]} Qe7 {[%emt 0:06:17]} 24. Nf5 {[%emt 0:02:59]} Qc7 {[%emt 0:00:01]} 25. Ng3 {[%emt 0:01:06]} Rf6 {[%emt 0:01:11]} 26. Nh5 {[%emt 0:02:41]} Nxh5 {[%emt 0:00:23]} 27. Qxh5 {[%emt 0:00:00]} Qf4 {[%emt 0:00:11]} 28. Qe2 {[%emt 0:02:54]} Qxd4 {[%emt 0:00:05]} 29. Red1 {[%emt 0:00:18]} Qb6 {[%emt 0:02:48]} 30. Ra3 {[%emt 0:00:28]} Raf8 {[%emt 0:00:19]} 31. Rf1 {[%emt 0:01:28]} Qd4 {[%emt 0:01:09]} 32. Qc2 {[%emt 0:01:10]} Rf4 {[%emt 0:02:00]} 33. Qe2 {[%emt 0:01:40]} e5 {[%emt 0:04:23]} 34. Qc2 {[%emt 0:01:19]} Kh8 {[%emt 0:02:17]} 35. Raa1 {[%emt 0:00:52]} Qd5 {[%emt 0:02:24]} 36. Qc3 {[%emt 0:00:54]} Rd4 {[%emt 0:00:34]} 37. Rae1 {[%emt 0:00:32]} Rf5 {[%emt 0:01:14]} 38. Qe3 {[%emt 0:00:00]} Rxa4 {[%emt 0:02:18]} 39. Qa7 {[%emt 0:00:36]} Rg5 {[%emt 0:03:50]} 40. g3 {[%emt 0:00:19]} b5 {[%emt 0:01:59]} 41. Re3 {[%emt 0:00:00]} Kh7 {[%emt 0:01:52]} 42. Rfe1 {[%emt 0:00:00]} Ra2 {[%emt 0:00:00]} 43. b3 {[%emt 0:00:25]} Rf5 {[%emt 0:01:06]} 0-1

[Event "2019 National Open"]
[Site "Las Vegas"]
[Date "2019.06.14"]
[Round "4"]
[White "Kung, Thomas"]
[Black "Kavutskiy, Konstantin"]
[Result "1/2-1/2"]
[ECO "B00"]
[WhiteElo "2136"]
[BlackElo "2417"]
[PlyCount "149"]
[EventDate "2019.??.??"]
[TimeControl "5400+30"]
[WhiteClock "0:04:21"]
[BlackClock "0:03:16"]

1. e4 {[%emt 0:00:00]} Nc6 {[%emt 0:00:08]} 2. Nf3 {[%emt 0:00:18]} d6 {[%emt 0:00:05]} 3. d4 {[%emt 0:00:14]} Nf6 {[%emt 0:00:06]} 4. Nc3 {[%emt 0:00:05]} g6 {[%emt 0:00:06]} 5. Bb5 {[%emt 0:03:52]} Bd7 {[%emt 0:00:26]} 6. e5 {[%emt 0:07:03]} dxe5 {[%emt 0:09:01]} 7. dxe5 {[%emt 0:00:25]} Nh5 {[%emt 0:00:10]} 8. O-O {[%emt 0:02:28]} a6 {[%emt 0:13:10]} 9. Bc4 {[%emt 0:03:03]} b5 {[%emt 0:07:26]} 10. Bxf7+ {[%emt 0:11:49]} Kxf7 {[%emt 0:00:08]} 11. e6+ {[%emt 0:01:34]} Ke8 {[%emt 0:02:20]} 12. exd7+ {[%emt 0:00:39]} Qxd7 {[%emt 0:00:07]} 13. Qe2 {[%emt 0:03:10]} Bg7 {[%emt 0:06:00]} 14. Rd1 {[%emt 0:04:46]} Qf5 {[%emt 0:01:14]} 15. Nd5 {[%emt 0:03:00]} Kf8 {[%emt 0:07:10]} 16. Nxc7 {[%emt 0:09:43]} Rc8 {[%emt 0:01:09]} 17. Ne6+ {[%emt 0:08:11]} Kg8 {[%emt 0:00:10]} 18. c3 {[%emt 0:02:42]} h6 {[%emt 0:03:10]} 19. h3 {[%emt 0:02:48]} Qf7 {[%emt 0:02:18]} 20. Bd2 {[%emt 0:04:25]} Ne5 {[%emt 0:05:11]} 21. Nfd4 {[%emt 0:02:35]} Nc4 {[%emt 0:00:35]} 22. b3 {[%emt 0:02:18]} Nxd2 {[%emt 0:01:32]} 23. Qxd2 {[%emt 0:03:03]} Bxd4 {[%emt 0:00:19]} 24. Nxd4 {[%emt 0:00:32]} Kh7 {[%emt 0:00:14]} 25. Qe3 {[%emt 0:03:17]} Nf4 {[%emt 0:00:47]} 26. Rac1 {[%emt 0:01:53]} Rhf8 {[%emt 0:00:37]} 27. Ne2 {[%emt 0:06:54]} Nd5 {[%emt 0:11:17]} 28. Qg3 {[%emt 0:00:22]} Nf6 {[%emt 0:00:38]} 29. Qe5 {[%emt 0:02:09]} Rc6 {[%emt 0:06:56]} 30. Nd4 {[%emt 0:02:46]} Rd6 {[%emt 0:00:05]} 31. Nf3 {[%emt 0:00:50]} Re6 {[%emt 0:06:33]} 32. Qd4 {[%emt 0:01:29]} Re4 {[%emt 0:01:17]} 33. Qd3 {[%emt 0:00:35]} Re6 {[%emt 0:02:19]} 34. Re1 {[%emt 0:01:11]} Nh5 {[%emt 0:04:55]} 35. Rxe6 {[%emt 0:00:33]} Qxe6 {[%emt 0:00:06]} 36. Qe3 {[%emt 0:01:22]} Qxe3 {[%emt 0:05:35]} 37. fxe3 {[%emt 0:00:01]} Ng3 {[%emt 0:00:04]} 38. Kf2 {[%emt 0:02:00]} Ne4+ {[%emt 0:00:05]} 39. Ke2 {[%emt 0:01:00]} Rc8 {[%emt 0:00:05]} 40. Kd3 {[%emt 0:00:37]} Nf2+ {[%emt 0:01:14]} 41. Kc2 {[%emt 0:01:04]} g5 {[%emt 0:01:08]} 42. Nd2 {[%emt 0:03:40]} g4 {[%emt 0:00:17]} 43. hxg4 {[%emt 0:00:00]} Nxg4 {[%emt 0:00:08]} 44. Kd3 {[%emt 0:00:17]} Ne5+ {[%emt 0:03:57]} 45. Ke4 {[%emt 0:00:00]} Nd7 {[%emt 0:00:05]} 46. Nf3 {[%emt 0:00:00]} Rd8 {[%emt 0:00:00]} 47. Kd5 {[%emt 0:01:31]} Nf8+ {[%emt 0:02:18]} 48. Kc6 {[%emt 0:00:38]} Rd6+ {[%emt 0:00:06]} 49. Kb7 {[%emt 0:01:03]} Nd7 {[%emt 0:00:05]} 50. Rc2 {[%emt 0:00:00]} Nc5+ {[%emt 0:01:11]} 51. Ka7 {[%emt 0:00:00]} Re6 {[%emt 0:00:19]} 52. c4 {[%emt 0:00:00]} b4 {[%emt 0:00:12]} 53. Nd4 {[%emt 0:00:00]} Rf6 {[%emt 0:00:00]} 54. Nf3 {[%emt 0:00:00]} a5 {[%emt 0:01:27]} 55. Rd2 {[%emt 0:00:10]} a4 {[%emt 0:00:43]} 56. Rd5 {[%emt 0:01:08]} axb3 {[%emt 0:00:00]} 57. axb3 {[%emt 0:00:10]} Nxb3 {[%emt 0:00:00]} 58. Rb5 {[%emt 0:00:26]} Re6 {[%emt 0:00:00]} 59. c5 {[%emt 0:01:05]} Nxc5 {[%emt 0:00:20]} 60. Rxc5 {[%emt 0:00:10]} Rxe3 {[%emt 0:00:06]} 61. Rc2 {[%emt 0:00:58]} b3 {[%emt 0:00:58]} 62. Rb2 {[%emt 0:00:20]} e5 {[%emt 0:00:11]} 63. Kb6 {[%emt 0:00:19]} Kg6 {[%emt 0:00:17]} 64. Kc5 {[%emt 0:00:25]} Kf5 {[%emt 0:01:03]} 65. Kc4 {[%emt 0:00:59]} Kf4 {[%emt 0:00:28]} 66. Rxb3 {[%emt 0:00:37]} Rxb3 {[%emt 0:00:05]} 67. Kxb3 {[%emt 0:00:01]} e4 {[%emt 0:00:45]} 68. Ne1 {[%emt 0:00:38]} Ke3 {[%emt 0:00:27]} 69. g4 {[%emt 0:00:49]} Kf4 {[%emt 0:00:36]} 70. Kc3 {[%emt 0:00:13]} Kxg4 {[%emt 0:00:05]} 71. Kd2 {[%emt 0:00:32]} Kf4 {[%emt 0:00:15]} 72. Ke2 {[%emt 0:00:25]} h5 {[%emt 0:00:10]} 73. Kf2 {[%emt 0:00:43]} h4 {[%emt 0:00:05]} 74. Ng2+ {[%emt 0:00:05]} Kg4 {[%emt 0:00:04]} 75. Nxh4 {[%emt 0:00:06]} 1/2-1/2

[Event "2019 National Open"]
[Site "Las Vegas"]
[Date "2019.06.14"]
[Round "4"]
[White "Huang, Gary"]
[Black "Yanayt, Eugene"]
[Result "1/2-1/2"]
[ECO "A04"]
[WhiteElo "2119"]
[BlackElo "2241"]
[PlyCount "107"]
[EventDate "2019.??.??"]
[TimeControl "5400+30"]
[WhiteClock "0:06:55"]
[BlackClock "0:01:13"]

1. Nf3 {[%emt 0:00:00]} g6 {[%emt 0:01:16]} 2. g3 {[%emt 0:00:11]} Bg7 {[%emt 0:00:14]} 3. Bg2 {[%emt 0:00:00]} e5 {[%emt 0:00:58]} 4. e4 {[%emt 0:02:21]} c5 {[%emt 0:01:36]} 5. O-O {[%emt 0:05:44]} Nc6 {[%emt 0:01:56]} 6. c3 {[%emt 0:01:54]} Nge7 {[%emt 0:00:43]} 7. d3 {[%emt 0:05:51]} O-O {[%emt 0:09:36]} 8. a3 {[%emt 0:07:14]} a5 {[%emt 0:06:11]} 9. a4 {[%emt 0:00:12]} h6 {[%emt 0:03:41]} 10. Be3 {[%emt 0:03:26]} Qb6 {[%emt 0:08:58]} 11. Qd2 {[%emt 0:05:56]} Kh7 {[%emt 0:00:01]} 12. Na3 {[%emt 0:02:22]} d6 {[%emt 0:06:44]} 13. Nb5 {[%emt 0:14:25]} Be6 {[%emt 0:06:29]} 14. Nxd6 {[%emt 0:19:59]} Rfd8 {[%emt 0:06:04]} 15. b4 {[%emt 0:00:03]} axb4 {[%emt 0:01:06]} 16. cxb4 {[%emt 0:03:45]} Nxb4 {[%emt 0:04:36]} 17. Rfc1 {[%emt 0:00:59]} Na6 {[%emt 0:06:55]} 18. Nc4 {[%emt 0:03:08]} Qc7 {[%emt 0:00:01]} 19. Rab1 {[%emt 0:07:54]} Nc6 {[%emt 0:00:01]} 20. Nb6 {[%emt 0:01:47]} Rab8 {[%emt 0:00:00]} 21. Bxc5 {[%emt 0:00:33]} Nxc5 {[%emt 0:00:41]} 22. Rxc5 {[%emt 0:00:09]} Qd6 {[%emt 0:01:14]} 23. Rcb5 {[%emt 0:09:07]} Qxd3 {[%emt 0:00:01]} 24. Qxd3 {[%emt 0:03:43]} Rxd3 {[%emt 0:00:02]} 25. h3 {[%emt 0:00:00]} f5 {[%emt 0:01:41]} 26. exf5 {[%emt 0:00:00]} gxf5 {[%emt 0:00:00]} 27. Ne1 {[%emt 0:00:00]} Rd2 {[%emt 0:01:38]} 28. Bd5 {[%emt 0:00:41]} Bxd5 {[%emt 0:00:59]} 29. Rxd5 {[%emt 0:01:05]} Rd8 {[%emt 0:01:40]} 30. Rxd8 {[%emt 0:00:22]} Rxd8 {[%emt 0:01:06]} 31. Nc4 {[%emt 0:01:04]} Rd7 {[%emt 0:00:27]} 32. Nf3 {[%emt 0:00:37]} f4 {[%emt 0:01:12]} 33. Re1 {[%emt 0:00:42]} fxg3 {[%emt 0:01:32]} 34. fxg3 {[%emt 0:01:01]} Rd5 {[%emt 0:00:00]} 35. Kf2 {[%emt 0:00:00]} Rc5 {[%emt 0:00:00]} 36. Nd6 {[%emt 0:00:00]} b6 {[%emt 0:00:30]} 37. Rb1 {[%emt 0:01:06]} Rc2+ {[%emt 0:00:12]} 38. Ke3 {[%emt 0:00:38]} Nd4 {[%emt 0:00:01]} 39. Nxd4 {[%emt 0:00:00]} exd4+ {[%emt 0:00:01]} 40. Kf4 {[%emt 0:00:29]} Rf2+ {[%emt 0:00:01]} 41. Ke4 {[%emt 0:00:00]} Re2+ {[%emt 0:01:03]} 42. Kf3 {[%emt 0:00:00]} Re3+ {[%emt 0:01:13]} 43. Kf2 {[%emt 0:00:00]} Re6 {[%emt 0:08:00]} 44. Nf5 {[%emt 0:01:11]} Bf8 {[%emt 0:01:22]} 45. Re1 {[%emt 0:02:05]} Rf6 {[%emt 0:01:55]} 46. Re5 {[%emt 0:00:43]} Kg6 {[%emt 0:07:54]} 47. g4 {[%emt 0:00:07]} h5 {[%emt 0:00:20]} 48. Ke2 {[%emt 0:00:02]} hxg4 {[%emt 0:00:17]} 49. hxg4 {[%emt 0:00:00]} Bc5 {[%emt 0:06:15]} 50. Kd3 {[%emt 0:00:10]} Rf8 {[%emt 0:01:10]} 51. Nh4+ {[%emt 0:00:00]} Kg7 {[%emt 0:00:00]} 52. Rg5+ {[%emt 0:00:35]} Kh7 {[%emt 0:00:01]} 53. a5 {[%emt 0:02:12]} Ra8 {[%emt 0:00:01]} 54. axb6 {[%emt 0:00:14]} 1/2-1/2

[Event "2019 National Open"]
[Site "Las Vegas"]
[Date "2019.06.14"]
[Round "4"]
[White "Kondakov, Adrian"]
[Black "Ghatti, Sanjay"]
[Result "0-1"]
[ECO "B13"]
[WhiteElo "2009"]
[BlackElo "2190"]
[PlyCount "92"]
[EventDate "2019.??.??"]
[TimeControl "5400+30"]
[WhiteClock "0:46:08"]
[BlackClock "0:24:22"]

1. e4 {[%emt 0:00:00]} c6 {[%emt 0:00:12]} 2. d4 {[%emt 0:00:08]} d5 {[%emt 0:00:06]} 3. exd5 {[%emt 0:00:04]} cxd5 {[%emt 0:00:06]} 4. Nf3 {[%emt 0:00:11]} Nc6 {[%emt 0:00:16]} 5. Bb5 {[%emt 0:00:17]} a6 {[%emt 0:01:43]} 6. Bxc6+ {[%emt 0:00:08]} bxc6 {[%emt 0:00:06]} 7. Ne5 {[%emt 0:00:32]} Qb6 {[%emt 0:01:04]} 8. O-O {[%emt 0:01:26]} Bf5 {[%emt 0:01:11]} 9. c4 {[%emt 0:02:52]} f6 {[%emt 0:07:28]} 10. c5 {[%emt 0:02:40]} Qb7 {[%emt 0:01:25]} 11. Nf3 {[%emt 0:00:10]} g5 {[%emt 0:03:14]} 12. Nc3 {[%emt 0:02:48]} e6 {[%emt 0:01:46]} 13. Re1 {[%emt 0:12:08]} Ne7 {[%emt 0:01:27]} 14. Ne2 {[%emt 0:06:01]} h5 {[%emt 0:03:11]} 15. Ng3 {[%emt 0:03:47]} Kd7 {[%emt 0:00:00]} 16. Qe2 {[%emt 0:10:03]} Re8 {[%emt 0:05:02]} 17. Bxg5 {[%emt 0:03:04]} fxg5 {[%emt 0:03:35]} 18. Nxg5 {[%emt 0:00:19]} h4 {[%emt 0:04:26]} 19. Nf7 {[%emt 0:18:31]} hxg3 {[%emt 0:02:07]} 20. Nxh8 {[%emt 0:00:06]} Bg7 {[%emt 0:03:09]} 21. Nf7 {[%emt 0:00:00]} gxh2+ {[%emt 0:00:01]} 22. Kh1 {[%emt 0:02:04]} Bxd4 {[%emt 0:00:01]} 23. Nd6 {[%emt 0:00:41]} Qxb2 {[%emt 0:02:46]} 24. Qxa6 {[%emt 0:00:30]} Bxc5 {[%emt 0:00:59]} 25. Nxe8 {[%emt 0:00:00]} Kxe8 {[%emt 0:00:00]} 26. Qe2 {[%emt 0:00:59]} Qxe2 {[%emt 0:03:30]} 27. Rxe2 {[%emt 0:00:00]} d4 {[%emt 0:00:27]} 28. a4 {[%emt 0:01:41]} d3 {[%emt 0:00:46]} 29. Rd2 {[%emt 0:00:00]} Bb4 {[%emt 0:00:50]} 30. Rdd1 {[%emt 0:00:08]} Ba5 {[%emt 0:00:21]} 31. Ra3 {[%emt 0:00:38]} d2 {[%emt 0:01:49]} 32. Ra2 {[%emt 0:00:00]} c5 {[%emt 0:00:46]} 33. Raxd2 {[%emt 0:00:00]} Bxd2 {[%emt 0:00:01]} 34. Rxd2 {[%emt 0:00:00]} c4 {[%emt 0:03:32]} 35. Kxh2 {[%emt 0:00:00]} c3 {[%emt 0:00:46]} 36. Rd4 {[%emt 0:03:10]} c2 {[%emt 0:00:00]} 37. Rc4 {[%emt 0:00:03]} Nd5 {[%emt 0:00:20]} 38. a5 {[%emt 0:02:27]} Bd3 {[%emt 0:00:01]} 39. Rc5 {[%emt 0:00:00]} Nb4 {[%emt 0:00:56]} 40. f3 {[%emt 0:00:25]} Kd7 {[%emt 0:03:03]} 41. Kg3 {[%emt 0:02:50]} Kd6 {[%emt 0:00:00]} 42. Rc3 {[%emt 0:01:56]} Nd5 {[%emt 0:01:45]} 43. a6 {[%emt 0:02:19]} Nxc3 {[%emt 0:00:24]} 44. a7 {[%emt 0:00:03]} Ne2+ {[%emt 0:01:44]} 45. Kh3 {[%emt 0:03:16]} c1=Q {[%emt 0:00:19]} 46. a8=Q {[%emt 0:00:13]} Qh6+ {[%emt 0:00:11]} 0-1